Workbook

Sheet Data
A1: Базовый расход | B1: Диаметр, м | C1: Уклон | D1: Наполнение | E1: скорость, м/сек | F1: Расход, л/сек | G1: погрешность, % | H1: Угол, град | I1: Площадь, м | J1: Радиус, м | K1: коэффициент С | L1: коэффициент шерховатости
A2: 10 | B2: 0.15 | C2: 0.005 | D2: 0.81 | E2: =ROUND(K2*(J2*C2)^0.5,4) -N("Вычисляем скорость вживом сечении ") -> 0.6513 | F2: =ROUND(1000*E2*I2,4) -> 9.9649 | G2: =100-(F2*100/A2) -> 0.351 | H2: =DEGREES(ACOS(1-2*D2)) -N("Находим угол в градусах ") -> 128.3161345 | I2: =ROUND(((PI()*1^2/4-((1/2)^2/2*(PI()*(2*(180-H2)/180)-SIN(2*(180-H2)*PI()/180))))*B2^2),4) -N("Вычисляем живое сечение. Формулой: площадь круга минус площадь сегмента ") -> 0.0153 | J2: =ROUND(B2*(I2/B2^2)/(PI()*H2/180),4) -N("Вычисляем гидравлический радиус, где ПИ*d*угол/180 - смоченный периметр ") -> 0.0455 | K2: =ROUND(J2^(2.5*($L$2^0.5)-0.13-($L$2^0.5-0.1)*0.75*J2^0.5)/$L$2,4) -N("формула Павловского") -> 43.1816 | L2: 0.014
A3: 12 | B3: 0.2 | C3: 0.005 | D3: 0.53 | E3: =ROUND(K3*(J3*C3)^0.5,4) -N("Вычисляем скорость вживом сечении ") -> 0.7102 | F3: =ROUND(1000*E3*I3,4) -N("Вычисляем расход в живом сечении, переводим из кубов в литры ") -> 12.0024 | G3: =100-(F3*100/A3) -> -0.02 | H3: =DEGREES(ACOS(1-2*D3)) -N("Находим угол в градусах ") -> 93.43981277 | I3: =ROUND(((PI()*1^2/4-((1/2)^2/2*(PI()*(2*(180-H3)/180)-SIN(2*(180-H3)*PI()/180))))*B3^2),4) -N("Вычисляем живое сечение. Формулой: площадь круга минус площадь сегмента ") -> 0.0169 | J3: =ROUND(B3*(I3/B3^2)/(PI()*H3/180),4) -N("Вычисляем гидравлический радиус, где ПИ*d*угол/180 - смоченный периметр ") -> 0.0518 | K3: =ROUND(J3^(2.5*($L$2^0.5)-0.13-($L$2^0.5-0.1)*0.75*J3^0.5)/$L$2,4) -N("формула Павловского") -> 44.1289 | L3: 1.014
A4: 12 | B4: 0.2 | C4: 0.005 | D4: 0.53 | E4: =ROUND(K4*(J4*C4)^0.5,4) -N("Вычисляем скорость вживом сечении ") -> 0.7102 | F4: =ROUND(1000*E4*I4,4) -N("Вычисляем расход в живом сечении, переводим из кубов в литры ") -> 12.0024 | G4: =100-(F4*100/A4) -> -0.02 | H4: =DEGREES(ACOS(1-2*D4)) -N("Находим угол в градусах ") -> 93.43981277 | I4: =ROUND(((PI()*1^2/4-((1/2)^2/2*(PI()*(2*(180-H4)/180)-SIN(2*(180-H4)*PI()/180))))*B4^2),4) -N("Вычисляем живое сечение. Формулой: площадь круга минус площадь сегмента ") -> 0.0169 | J4: =ROUND(B4*(I4/B4^2)/(PI()*H4/180),4) -N("Вычисляем гидравлический радиус, где ПИ*d*угол/180 - смоченный периметр ") -> 0.0518 | K4: =ROUND(J4^(2.5*($L$2^0.5)-0.13-($L$2^0.5-0.1)*0.75*J4^0.5)/$L$2,4) -N("формула Павловского") -> 44.1289 | L4: 2.014
A5: 12 | B5: 0.2 | C5: 0.005 | D5: 0.53 | E5: 0.7102 | F5: 12.0024 | G5: -0.02 | H5: 93.43981277 | I5: 0.0169 | J5: 0.0518 | K5: 44.1289 | L5: 3.014
A6: 12 | B6: 0.2 | C6: 0.005 | D6: 0.53 | E6: 0.7102 | F6: 12.0024 | G6: -0.02 | H6: 93.43981277 | I6: 0.0169 | J6: 0.0518 | K6: 44.1289 | L6: 4.014
